[Event "Schack-SM 2022: Mastarklassen"]
[Site "Fyrishov, Idrottsgatan 2, Uppsala, Sweden"]
[Date "2022.07.07"]
[Round "6.7"]
[White "Strom-Engdahl, Alexander"]
[Black "Styf, Josef"]
[Result "1/2-1/2"]
[TimeControl "90 minutes for 40 moves + 30 minutes for the rest of the game + 30 seconds per move from move one."]
[WhiteFideId "1741586"]
[BlackFideId "1708279"]
[WhiteElo "2077"]
[BlackElo "2048"]

1. d4 {[%clk 01:30:53]} {[%emt 00:00:06]} Nf6 {[%clk 01:30:25]} {[%emt
00:00:35]} 2. Bf4 {[%clk 01:31:16]} {[%emt 00:00:07]} d6 {[%clk 01:26:14]}
{[%emt 00:04:40]} 3. Nc3 {[%clk 01:29:02]} {[%emt 00:02:44]} Nbd7 {[%clk
01:24:28]} {[%emt 00:02:17]} 4. e4 {[%clk 01:28:09]} {[%emt 00:01:22]} e5
{[%clk 01:23:23]} {[%emt 00:01:35]} 5. Be3 {[%clk 01:23:55]} {[%emt 00:04:44]}
Be7 {[%clk 01:17:35]} {[%emt 00:06:18]} 6. f3 {[%clk 01:21:06]} {[%emt
00:03:19]} O-O {[%clk 01:16:34]} {[%emt 00:01:31]} 7. Nge2 {[%clk 01:17:55]}
{[%emt 00:03:42]} c6 {[%clk 01:15:50]} {[%emt 00:01:13]} 8. Ng3 {[%clk
01:13:10]} {[%emt 00:05:15]} d5 {[%clk 01:07:28]} {[%emt 00:08:52]} 9. Be2
{[%clk 01:04:03]} {[%emt 00:09:38]} dxe4 {[%clk 01:02:51]} {[%emt 00:05:06]} 10.
fxe4 {[%clk 01:03:45]} {[%emt 00:00:48]} exd4 {[%clk 00:57:37]} {[%emt
00:05:44]} 11. Bxd4 {[%clk 01:02:37]} {[%emt 00:01:39]} Nc5 {[%clk 00:53:53]}
{[%emt 00:04:14]} 12. O-O {[%clk 00:55:33]} {[%emt 00:07:34]} b5 {[%clk
00:46:55]} {[%emt 00:07:28]} 13. a3 {[%clk 00:42:58]} {[%emt 00:13:06]} Be6
{[%clk 00:40:04]} {[%emt 00:07:20]} 14. Be3 {[%clk 00:37:16]} {[%emt 00:06:11]}
a5 {[%clk 00:37:21]} {[%emt 00:03:14]} 15. Qxd8 {[%clk 00:32:38]} {[%emt
00:05:07]} Rfxd8 {[%clk 00:36:22]} {[%emt 00:01:29]} 16. Bf3 {[%clk 00:32:21]}
{[%emt 00:00:48]} Ng4 {[%clk 00:30:41]} {[%emt 00:06:10]} 17. Bxg4 {[%clk
00:31:47]} {[%emt 00:01:05]} Bxg4 {[%clk 00:31:05]} {[%emt 00:00:05]} 18. Nf5
{[%clk 00:30:15]} {[%emt 00:02:03]} 1/2-1/2

[Event "Schack-SM 2022: Mastarklassen"]
[Site "Fyrishov, Idrottsgatan 2, Uppsala, Sweden"]
[Date "2022.07.07"]
[Round "6.8"]
[White "Hammarstrom, Ulf"]
[Black "Joensson, Jacob"]
[Result "1/2-1/2"]
[TimeControl "90 minutes for 40 moves + 30 minutes for the rest of the game + 30 seconds per move from move one."]
[WhiteFideId "1710214"]
[BlackFideId "1726315"]
[WhiteElo "2233"]
[BlackElo "1947"]

1. c4 {[%clk 01:30:48]} {[%emt 00:00:11]} e6 {[%clk 01:30:56]} {[%emt
00:00:05]} 2. g3 {[%clk 01:31:01]} {[%emt 00:00:16]} d5 {[%clk 01:31:21]}
{[%emt 00:00:05]} 3. Bg2 {[%clk 01:31:22]} {[%emt 00:00:09]} Nf6 {[%clk
01:31:44]} {[%emt 00:00:07]} 4. Nf3 {[%clk 01:31:48]} {[%emt 00:00:04]} Be7
{[%clk 01:32:08]} {[%emt 00:00:05]} 5. O-O {[%clk 01:32:13]} {[%emt 00:00:04]}
O-O {[%clk 01:32:34]} {[%emt 00:00:05]} 6. d4 {[%clk 01:31:58]} {[%emt
00:00:45]} c6 {[%clk 01:32:54]} {[%emt 00:00:10]} 7. Nc3 {[%clk 01:32:08]}
{[%emt 00:00:19]} b6 {[%clk 01:32:58]} {[%emt 00:00:26]} 8. Ne5 {[%clk
01:32:02]} {[%emt 00:00:37]} Bb7 {[%clk 01:32:51]} {[%emt 00:00:37]} 9. e4
{[%clk 01:31:46]} {[%emt 00:00:46]} Na6 {[%clk 01:27:23]} {[%emt 00:05:58]} 10.
Be3 {[%clk 01:28:05]} {[%emt 00:04:11]} Nc7 {[%clk 01:04:02]} {[%emt 00:23:52]}
11. a3 {[%clk 01:25:15]} {[%emt 00:03:20]} Nd7 {[%clk 01:01:16]} {[%emt
00:03:15]} 12. Nxd7 {[%clk 01:13:54]} {[%emt 00:11:51]} Qxd7 {[%clk 01:01:40]}
{[%emt 00:00:06]} 13. cxd5 {[%clk 01:13:09]} {[%emt 00:01:15]} cxd5 {[%clk
01:01:58]} {[%emt 00:00:13]} 14. e5 {[%clk 01:13:02]} {[%emt 00:00:36]} Ba6
{[%clk 00:54:54]} {[%emt 00:07:33]} 15. Re1 {[%clk 01:12:27]} {[%emt 00:01:05]}
Rfc8 {[%clk 00:55:12]} {[%emt 00:00:13]} 16. Qg4 {[%clk 01:10:27]} {[%emt
00:02:29]} Bd3 {[%clk 00:54:23]} {[%emt 00:01:20]} 17. Rec1 {[%clk 01:08:39]}
{[%emt 00:02:17]} Qe8 {[%clk 00:42:08]} {[%emt 00:12:46]} 18. Qd1 {[%clk
01:08:01]} {[%emt 00:01:08]} Bg6 {[%clk 00:42:08]} {[%emt 00:00:29]} 19. Bf1
{[%clk 01:07:56]} {[%emt 00:00:35]} Rab8 {[%clk 00:32:59]} {[%emt 00:09:40]} 20.
h4 {[%clk 01:02:41]} {[%emt 00:05:44]} h6 {[%clk 00:33:21]} {[%emt 00:00:09]}
21. a4 {[%clk 00:56:48]} {[%emt 00:06:23]} a6 {[%clk 00:30:06]} {[%emt
00:03:46]} 22. Qb3 {[%clk 00:55:10]} {[%emt 00:02:08]} b5 {[%clk 00:28:36]}
{[%emt 00:01:59]} 23. axb5 {[%clk 00:54:29]} {[%emt 00:01:12]} Nxb5 {[%clk
00:28:51]} {[%emt 00:00:15]} 24. Nxb5 {[%clk 00:54:22]} {[%emt 00:00:36]} Rxc1
{[%clk 00:29:09]} {[%emt 00:00:12]} 25. Rxc1 {[%clk 00:52:37]} {[%emt
00:02:15]} axb5 {[%clk 00:29:31]} {[%emt 00:00:08]} 26. Qc3 {[%clk 00:50:53]}
{[%emt 00:02:14]} Bf8 {[%clk 00:26:21]} {[%emt 00:03:41]} 27. Qc6 {[%clk
00:48:55]} {[%emt 00:02:27]} Qxc6 {[%clk 00:25:08]} {[%emt 00:01:44]} 28. Rxc6
{[%clk 00:49:21]} {[%emt 00:00:04]} Bb4 {[%clk 00:25:28]} {[%emt 00:00:11]} 29.
Bc1 {[%clk 00:43:24]} {[%emt 00:06:26]} Bb1 {[%clk 00:22:44]} {[%emt 00:03:14]}
30. Be2 {[%clk 00:35:36]} {[%emt 00:08:17]} Ba2 {[%clk 00:20:58]} {[%emt
00:02:17]} 31. Kf1 {[%clk 00:34:17]} {[%emt 00:01:49]} Bc4 {[%clk 00:20:58]}
{[%emt 00:00:31]} 32. Bxc4 {[%clk 00:34:27]} {[%emt 00:00:20]} bxc4 {[%clk
00:21:22]} {[%emt 00:00:07]} 33. Ke2 {[%clk 00:34:03]} {[%emt 00:00:53]} h5
{[%clk 00:20:07]} {[%emt 00:01:45]} 1/2-1/2

[Event "Schack-SM 2022: Mastarklassen"]
[Site "Fyrishov, Idrottsgatan 2, Uppsala, Sweden"]
[Date "2022.07.07"]
[Round "6.9"]
[White "Dingertz, Erik"]
[Black "Tiger-Norqvist, Axel"]
[Result "0-1"]
[TimeControl "90 minutes for 40 moves + 30 minutes for the rest of the game + 30 seconds per move from move one."]
[WhiteFideId "1741578"]
[BlackFideId "1716816"]
[WhiteElo "2021"]
[BlackElo "2239"]

1. c4 {[%clk 01:30:57]} {[%emt 00:00:02]} Nf6 {[%clk 01:30:55]} {[%emt
00:00:06]} 2. g3 {[%clk 01:31:23]} {[%emt 00:00:03]} g6 {[%clk 01:31:18]}
{[%emt 00:00:07]} 3. Bg2 {[%clk 01:31:51]} {[%emt 00:00:02]} Bg7 {[%clk
01:31:42]} {[%emt 00:00:06]} 4. Nc3 {[%clk 01:32:17]} {[%emt 00:00:04]} O-O
{[%clk 01:32:06]} {[%emt 00:00:06]} 5. Rb1 {[%clk 01:32:42]} {[%emt 00:00:06]}
a5 {[%clk 01:29:18]} {[%emt 00:03:18]} 6. a3 {[%clk 01:33:05]} {[%emt
00:00:06]} d6 {[%clk 01:29:17]} {[%emt 00:00:32]} 7. b4 {[%clk 01:33:26]}
{[%emt 00:00:08]} axb4 {[%clk 01:29:41]} {[%emt 00:00:05]} 8. axb4 {[%clk
01:33:51]} {[%emt 00:00:04]} e5 {[%clk 01:29:21]} {[%emt 00:00:51]} 9. d3
{[%clk 01:34:11]} {[%emt 00:00:09]} h6 {[%clk 01:27:40]} {[%emt 00:02:12]} 10.
Nf3 {[%clk 01:34:22]} {[%emt 00:00:19]} Nc6 {[%clk 01:27:59]} {[%emt 00:00:11]}
11. b5 {[%clk 01:34:45]} {[%emt 00:00:07]} Ne7 {[%clk 01:27:57]} {[%emt
00:00:32]} 12. O-O {[%clk 01:33:39]} {[%emt 00:01:36]} Be6 {[%clk 01:28:22]}
{[%emt 00:00:05]} 13. Qb3 {[%clk 01:30:48]} {[%emt 00:03:20]} Qd7 {[%clk
01:27:33]} {[%emt 00:01:19]} 14. Ba3 {[%clk 01:29:59]} {[%emt 00:01:19]} Bh3
{[%clk 01:12:46]} {[%emt 00:15:18]} 15. c5 {[%clk 01:17:53]} {[%emt 00:12:36]}
Bxg2 {[%clk 01:11:55]} {[%emt 00:01:21]} 16. Kxg2 {[%clk 01:18:19]} {[%emt
00:00:04]} Ne8 {[%clk 00:50:49]} {[%emt 00:21:36]} 17. Ra1 {[%clk 01:13:39]}
{[%emt 00:05:09]} dxc5 {[%clk 00:46:14]} {[%emt 00:05:06]} 18. Bxc5 {[%clk
01:10:43]} {[%emt 00:03:25]} Nd6 {[%clk 00:46:41]} {[%emt 00:00:03]} 19. Ra3
{[%clk 01:00:05]} {[%emt 00:11:09]} Rxa3 {[%clk 00:43:35]} {[%emt 00:03:36]} 20.
Qxa3 {[%clk 01:00:25]} {[%emt 00:00:10]} b6 {[%clk 00:43:57]} {[%emt 00:00:07]}
21. Bxd6 {[%clk 00:56:55]} {[%emt 00:04:00]} cxd6 {[%clk 00:44:21]} {[%emt
00:00:06]} 22. Ra1 {[%clk 00:56:44]} {[%emt 00:00:41]} Rc8 {[%clk 00:41:16]}
{[%emt 00:03:36]} 23. e4 {[%clk 00:49:38]} {[%emt 00:07:36]} d5 {[%clk
00:37:33]} {[%emt 00:04:13]} 24. Qb3 {[%clk 00:24:40]} {[%emt 00:25:27]} dxe4
{[%clk 00:10:42]} {[%emt 00:27:22]} 25. dxe4 {[%clk 00:22:55]} {[%emt
00:02:14]} Qb7 {[%clk 00:06:56]} {[%emt 00:04:16]} 26. Ra6 {[%clk 00:18:44]}
{[%emt 00:04:41]} Rd8 {[%clk 00:05:49]} {[%emt 00:01:38]} 27. Qa3 {[%clk
00:16:51]} {[%emt 00:02:23]} Nc8 {[%clk 00:06:10]} {[%emt 00:00:08]} 28. Qb3
{[%clk 00:06:03]} {[%emt 00:11:18]} Kh7 {[%clk 00:06:02]} {[%emt 00:00:38]} 29.
Qc4 {[%clk 00:05:06]} {[%emt 00:01:26]} f5 {[%clk 00:03:01]} {[%emt 00:03:32]}
30. Nh4 {[%clk 00:03:33]} {[%emt 00:02:03]} Rd4 {[%clk 00:02:11]} {[%emt
00:01:21]} 31. Qe6 {[%clk 00:03:33]} {[%emt 00:00:29]} Rd6 {[%clk 00:02:36]}
{[%emt 00:00:04]} 32. Qc4 {[%clk 00:02:50]} {[%emt 00:01:14]} Rd4 {[%clk
00:01:30]} {[%emt 00:01:37]} 33. Qe6 {[%clk 00:01:06]} {[%emt 00:02:13]} Rd6
{[%clk 00:01:56]} {[%emt 00:00:05]} 34. Qc4 {[%clk 00:01:10]} {[%emt 00:00:26]}
Ne7 {[%clk 00:01:35]} {[%emt 00:00:51]} 35. f3 {[%clk 00:00:48]} {[%emt
00:00:51]} Rd4 {[%clk 00:01:14]} {[%emt 00:00:52]} 36. Qe6 {[%clk 00:01:06]}
{[%emt 00:00:11]} Qc7 {[%clk 00:01:38]} {[%emt 00:00:06]} 37. Nd5 {[%clk
00:01:20]} {[%emt 00:00:16]} Qc2+ {[%clk 00:02:02]} {[%emt 00:00:07]} 38. Kh3
{[%clk 00:01:46]} {[%emt 00:00:04]} Rd2 {[%clk 00:02:15]} {[%emt 00:00:16]} 39.
exf5 {[%clk 00:01:30]} {[%emt 00:00:46]} Rxh2+ {[%clk 00:02:11]} {[%emt
00:00:34]} 40. Kg4 {[%clk 00:01:58]} {[%emt 00:00:03]} Rxh4+ {[%clk 00:01:25]}
{[%emt 00:01:17]} 41. Kxh4 {[%clk 00:02:01]} {[%emt 00:00:26]} Qh2+ {[%clk
00:01:47]} {[%emt 00:00:08]} 42. Kg4 {[%clk 00:02:26]} {[%emt 00:00:05]} Qh5#
{[%clk 00:02:10]} {[%emt 00:00:06]} 0-1

[Event "Schack-SM 2022: Mastarklassen"]
[Site "Fyrishov, Idrottsgatan 2, Uppsala, Sweden"]
[Date "2022.07.06"]
[Round "5.8"]
[White "Joensson, Jacob"]
[Black "Strom-Engdahl, Alexander"]
[Result "1/2-1/2"]
[TimeControl "90 minutes for 40 moves + 30 minutes for the rest of the game + 30 seconds per move from move one."]
[WhiteFideId "1726315"]
[BlackFideId "1741586"]
[WhiteElo "1947"]
[BlackElo "2077"]

1. d4 {[%clk 01:30:57]} {[%emt 00:00:01]} Nf6 {[%clk 01:30:53]} {[%emt
00:00:07]} 2. c4 {[%clk 01:31:22]} {[%emt 00:00:05]} e6 {[%clk 01:31:19]}
{[%emt 00:00:04]} 3. Nf3 {[%clk 01:31:46]} {[%emt 00:00:05]} Bb4+ {[%clk
01:31:13]} {[%emt 00:00:35]} 4. Bd2 {[%clk 01:32:10]} {[%emt 00:00:07]} Bxd2+
{[%clk 01:31:38]} {[%emt 00:00:05]} 5. Qxd2 {[%clk 01:32:33]} {[%emt 00:00:08]}
b6 {[%clk 01:31:57]} {[%emt 00:00:10]} 6. Nc3 {[%clk 01:27:41]} {[%emt
00:05:21]} Bb7 {[%clk 01:32:15]} {[%emt 00:00:13]} 7. Qc2 {[%clk 01:27:22]}
{[%emt 00:00:49]} d5 {[%clk 01:29:38]} {[%emt 00:03:07]} 8. e3 {[%clk
01:25:00]} {[%emt 00:02:53]} O-O {[%clk 01:29:46]} {[%emt 00:00:22]} 9. Rc1
{[%clk 01:22:30]} {[%emt 00:02:59]} Nbd7 {[%clk 01:28:38]} {[%emt 00:01:36]} 10.
cxd5 {[%clk 01:19:43]} {[%emt 00:03:19]} exd5 {[%clk 01:28:54]} {[%emt
00:00:14]} 11. Nb5 {[%clk 01:19:23]} {[%emt 00:00:49]} c5 {[%clk 01:25:31]}
{[%emt 00:03:53]} 12. Nd6 {[%clk 01:17:25]} {[%emt 00:02:28]} Qb8 {[%clk
01:23:50]} {[%emt 00:02:11]} 13. Nxb7 {[%clk 01:07:23]} {[%emt 00:10:32]} Qxb7
{[%clk 01:24:06]} {[%emt 00:00:15]} 14. Bd3 {[%clk 01:07:44]} {[%emt 00:00:09]}
Rac8 {[%clk 01:19:30]} {[%emt 00:05:06]} 15. dxc5 {[%clk 01:05:19]} {[%emt
00:02:55]} bxc5 {[%clk 01:19:14]} {[%emt 00:00:46]} 16. O-O {[%clk 01:05:01]}
{[%emt 00:00:48]} g6 {[%clk 01:02:14]} {[%emt 00:17:30]} 17. Qc3 {[%clk
00:58:06]} {[%emt 00:07:24]} Rb8 {[%clk 00:56:55]} {[%emt 00:05:49]} 18. b3
{[%clk 00:56:25]} {[%emt 00:02:12]} Rfc8 {[%clk 00:53:38]} {[%emt 00:03:47]} 19.
Rfd1 {[%clk 00:50:37]} {[%emt 00:06:17]} Qb4 {[%clk 00:51:49]} {[%emt
00:02:20]} 20. Qxb4 {[%clk 00:42:14]} {[%emt 00:08:53]} Rxb4 {[%clk 00:51:45]}
{[%emt 00:00:33]} 21. Nd4 {[%clk 00:42:16]} {[%emt 00:00:29]} Rbb8 {[%clk
00:42:35]} {[%emt 00:09:40]} 22. Ba6 {[%clk 00:39:58]} {[%emt 00:02:47]} Re8
{[%clk 00:42:33]} {[%emt 00:00:33]} 23. Ne2 {[%clk 00:36:04]} {[%emt 00:04:24]}
Re6 {[%clk 00:36:23]} {[%emt 00:06:40]} 24. Bd3 {[%clk 00:36:15]} {[%emt
00:00:19]} Rd6 {[%clk 00:34:07]} {[%emt 00:02:46]} 25. Nc3 {[%clk 00:31:30]}
{[%emt 00:05:15]} Ne5 {[%clk 00:29:39]} {[%emt 00:04:59]} 26. Be2 {[%clk
00:25:06]} {[%emt 00:06:53]} Rdd8 {[%clk 00:26:53]} {[%emt 00:03:16]} 27. h3
{[%clk 00:21:29]} {[%emt 00:04:07]} d4 {[%clk 00:23:58]} {[%emt 00:03:24]} 28.
exd4 {[%clk 00:17:57]} {[%emt 00:04:02]} cxd4 {[%clk 00:23:48]} {[%emt
00:00:40]} 29. f4 {[%clk 00:18:20]} {[%emt 00:00:07]} dxc3 {[%clk 00:20:23]}
{[%emt 00:03:56]} 30. fxe5 {[%clk 00:18:31]} {[%emt 00:00:19]} Rxd1+ {[%clk
00:18:28]} {[%emt 00:02:26]} 31. Bxd1 {[%clk 00:18:53]} {[%emt 00:00:07]} Nd5
{[%clk 00:17:41]} {[%emt 00:01:17]} 32. Bf3 {[%clk 00:18:43]} {[%emt 00:00:39]}
Nb4 {[%clk 00:14:00]} {[%emt 00:04:11]} 33. a3 {[%clk 00:18:40]} {[%emt
00:00:33]} Nd3 {[%clk 00:14:13]} {[%emt 00:00:17]} 34. Rxc3 {[%clk 00:19:03]}
{[%emt 00:00:07]} Nxe5 {[%clk 00:14:39]} {[%emt 00:00:05]} 35. b4 {[%clk
00:18:43]} {[%emt 00:00:49]} Nxf3+ {[%clk 00:12:40]} {[%emt 00:02:29]} 36. Rxf3
{[%clk 00:19:05]} {[%emt 00:00:07]} Rc8 {[%clk 00:12:51]} {[%emt 00:00:19]}
1/2-1/2

[Event "Schack-SM 2022: Mastarklassen"]
[Site "Fyrishov, Idrottsgatan 2, Uppsala, Sweden"]
[Date "2022.07.06"]
[Round "5.9"]
[White "Pettersson, Tobias"]
[Black "Carlstrom, Niklas"]
[Result "1-0"]
[TimeControl "90 minutes for 40 moves + 30 minutes for the rest of the game + 30 seconds per move from move one."]
[WhiteFideId "1705962"]
[BlackFideId "1704648"]
[WhiteElo "2027"]
[BlackElo "2125"]

1. d4 {[%clk 01:30:46]} {[%emt 00:00:13]} e6 {[%clk 01:30:44]} {[%emt
00:00:16]} 2. Nf3 {[%clk 01:28:19]} {[%emt 00:02:57]} f5 {[%clk 01:30:59]}
{[%emt 00:00:15]} 3. c4 {[%clk 01:28:17]} {[%emt 00:00:33]} Nf6 {[%clk
01:31:18]} {[%emt 00:00:10]} 4. g3 {[%clk 01:28:34]} {[%emt 00:00:13]} Be7
{[%clk 01:31:41]} {[%emt 00:00:07]} 5. Bg2 {[%clk 01:28:51]} {[%emt 00:00:13]}
O-O {[%clk 01:31:56]} {[%emt 00:00:15]} 6. O-O {[%clk 01:29:06]} {[%emt
00:00:14]} d6 {[%clk 01:31:58]} {[%emt 00:00:29]} 7. Nc3 {[%clk 01:29:00]}
{[%emt 00:00:37]} Ne4 {[%clk 01:32:07]} {[%emt 00:00:21]} 8. Qc2 {[%clk
01:28:33]} {[%emt 00:00:57]} Nxc3 {[%clk 01:32:16]} {[%emt 00:00:21]} 9. bxc3
{[%clk 01:28:01]} {[%emt 00:01:03]} Nc6 {[%clk 01:32:16]} {[%emt 00:00:29]} 10.
e4 {[%clk 01:27:41]} {[%emt 00:00:49]} e5 {[%clk 01:31:55]} {[%emt 00:00:52]}
11. Ba3 {[%clk 01:20:09]} {[%emt 00:08:03]} f4 {[%clk 01:25:09]} {[%emt
00:07:15]} 12. c5 {[%clk 01:17:35]} {[%emt 00:03:04]} Kh8 {[%clk 01:22:48]}
{[%emt 00:02:51]} 13. Rab1 {[%clk 00:55:27]} {[%emt 00:22:38]} Qe8 {[%clk
01:13:04]} {[%emt 00:10:14]} 14. cxd6 {[%clk 00:51:11]} {[%emt 00:04:46]} cxd6
{[%clk 01:13:01]} {[%emt 00:00:33]} 15. dxe5 {[%clk 00:43:25]} {[%emt
00:08:16]} dxe5 {[%clk 01:13:12]} {[%emt 00:00:19]} 16. Bxe7 {[%clk 00:43:38]}
{[%emt 00:00:16]} Qxe7 {[%clk 01:13:35]} {[%emt 00:00:06]} 17. Nh4 {[%clk
00:40:10]} {[%emt 00:03:58]} g6 {[%clk 01:00:19]} {[%emt 00:13:47]} 18. h3
{[%clk 00:32:00]} {[%emt 00:08:40]} Be6 {[%clk 00:56:30]} {[%emt 00:04:19]} 19.
Rfd1 {[%clk 00:31:31]} {[%emt 00:00:59]} fxg3 {[%clk 00:44:44]} {[%emt
00:12:17]} 20. fxg3 {[%clk 00:31:43]} {[%emt 00:00:18]} Qc5+ {[%clk 00:44:38]}
{[%emt 00:00:36]} 21. Kh2 {[%clk 00:30:23]} {[%emt 00:01:49]} b6 {[%clk
00:41:30]} {[%emt 00:03:38]} 22. Qd2 {[%clk 00:23:25]} {[%emt 00:07:28]} Rad8
{[%clk 00:29:34]} {[%emt 00:12:26]} 23. Nxg6+ {[%clk 00:15:36]} {[%emt
00:08:20]} Kg8 {[%clk 00:20:17]} {[%emt 00:09:48]} 24. Qg5 {[%clk 00:11:56]}
{[%emt 00:04:09]} 1-0

[Event "Schack-SM 2022: Mastarklassen"]
[Site "Fyrishov, Idrottsgatan 2, Uppsala, Sweden"]
[Date "2022.07.06"]
[Round "5.1"]
[White "Lind, Jan-Olov"]
[Black "Johnson, Daniel"]
[Result "1/2-1/2"]
[TimeControl "90 minutes for 40 moves + 30 minutes for the rest of the game + 30 seconds per move from move one."]
[WhiteFideId "1701193"]
[BlackFideId "1721283"]
[WhiteElo "2173"]
[BlackElo "2191"]

1. e4 {[%clk 01:30:56]} {[%emt 00:00:03]} e5 {[%clk 01:27:31]} {[%emt
00:03:28]} 2. Nf3 {[%clk 01:31:09]} {[%emt 00:00:19]} Nc6 {[%clk 01:27:54]}
{[%emt 00:00:08]} 3. d4 {[%clk 01:31:32]} {[%emt 00:00:07]} exd4 {[%clk
01:28:15]} {[%emt 00:00:09]} 4. c3 {[%clk 01:31:56]} {[%emt 00:00:06]} d5
{[%clk 01:28:32]} {[%emt 00:00:13]} 5. exd5 {[%clk 01:32:20]} {[%emt 00:00:06]}
Qxd5 {[%clk 01:28:56]} {[%emt 00:00:06]} 6. cxd4 {[%clk 01:32:45]} {[%emt
00:00:05]} Bg4 {[%clk 01:29:17]} {[%emt 00:00:08]} 7. Be2 {[%clk 01:33:10]}
{[%emt 00:00:05]} Bb4+ {[%clk 01:29:42]} {[%emt 00:00:06]} 8. Nc3 {[%clk
01:33:33]} {[%emt 00:00:06]} Bxf3 {[%clk 01:29:53]} {[%emt 00:00:19]} 9. Bxf3
{[%clk 01:33:57]} {[%emt 00:00:06]} Qc4 {[%clk 01:30:08]} {[%emt 00:00:16]} 10.
Qb3 {[%clk 01:34:20]} {[%emt 00:00:07]} Qxb3 {[%clk 01:30:29]} {[%emt
00:00:09]} 11. axb3 {[%clk 01:34:43]} {[%emt 00:00:06]} Nge7 {[%clk 01:30:44]}
{[%emt 00:00:15]} 12. O-O {[%clk 01:35:05]} {[%emt 00:00:08]} O-O-O {[%clk
01:30:15]} {[%emt 00:00:59]} 13. Be3 {[%clk 01:35:16]} {[%emt 00:00:19]} Rhe8
{[%clk 01:29:55]} {[%emt 00:00:50]} 14. Rfd1 {[%clk 01:35:12]} {[%emt
00:00:34]} a6 {[%clk 01:29:54]} {[%emt 00:00:31]} 15. g3 {[%clk 01:33:24]}
{[%emt 00:02:17]} Kb8 {[%clk 01:27:51]} {[%emt 00:02:34]} 16. Kf1 {[%clk
01:33:39]} {[%emt 00:00:15]} Rd7 {[%clk 01:12:09]} {[%emt 00:16:12]} 17. Ra4
{[%clk 01:12:03]} {[%emt 00:22:06]} Red8 {[%clk 00:57:19]} {[%emt 00:15:20]} 18.
Rda1 {[%clk 01:04:33]} {[%emt 00:08:00]} a5 {[%clk 00:25:44]} {[%emt 00:32:06]}
19. Na2 {[%clk 00:54:36]} {[%emt 00:10:27]} Nd5 {[%clk 00:25:20]} {[%emt
00:00:54]} 20. Bxd5 {[%clk 00:39:08]} {[%emt 00:15:58]} Rxd5 {[%clk 00:25:32]}
{[%emt 00:00:18]} 21. Nxb4 {[%clk 00:39:24]} {[%emt 00:00:15]} Nxb4 {[%clk
00:25:39]} {[%emt 00:00:22]} 22. Rxa5 {[%clk 00:39:41]} {[%emt 00:00:14]} Rxa5
{[%clk 00:25:08]} {[%emt 00:01:00]} 23. Rxa5 {[%clk 00:40:01]} {[%emt
00:00:10]} Nc6 {[%clk 00:24:19]} {[%emt 00:01:18]} 24. Rh5 {[%clk 00:35:17]}
{[%emt 00:05:14]} h6 {[%clk 00:18:58]} {[%emt 00:05:52]} 25. Rf5 {[%clk
00:34:14]} {[%emt 00:01:33]} f6 {[%clk 00:18:57]} {[%emt 00:00:31]} 26. Rf4
{[%clk 00:32:50]} {[%emt 00:01:53]} Rd5 {[%clk 00:12:57]} {[%emt 00:06:31]} 27.
Re4 {[%clk 00:31:40]} {[%emt 00:01:40]} Kc8 {[%clk 00:11:17]} {[%emt 00:02:09]}
28. Re8+ {[%clk 00:23:20]} {[%emt 00:08:50]} Rd8 {[%clk 00:11:06]} {[%emt
00:00:42]} 29. Rxd8+ {[%clk 00:20:23]} {[%emt 00:03:26]} 1/2-1/2